bitfinex-derivatives/quotes_BTCF0:USTF0_20250910
["timestamp","ask_amount","ask_price","bid_price","bid_amount"]
[1757507838187,0.6359,113460.0,113450.0,0.07725342]
[1757507838677,0.43102,113460.0,113450.0,0.07725342]
[1757507838879,0.68102,113460.0,113450.0,0.07725342]
[1757507839089,0.44979905,113460.0,113450.0,0.07725342]
[1757507839389,0.32022,113460.0,113440.0,0.18607621]
[1757507839687,0.07022,113440.0,113430.0,0.07725342]
[1757507839878,0.43102,113440.0,113430.0,0.24879247]
[1757507840079,0.3608,113440.0,113430.0,0.52582247]
[1757507840280,0.45745274,113460.0,113430.0,0.52582247]
[1757507840479,0.04512,113450.0,113440.0,0.17153905]
[1757507840886,0.04512,113450.0,113440.0,0.04196]
[1757507841087,0.04512,113450.0,113440.0,0.17153905]
[1757507841291,0.04512,113460.0,113450.0,0.06899]
[1757507841485,0.04512,113460.0,113450.0,0.19856905]
[1757507842380,0.04512,113460.0,113450.0,0.55936905]
[1757507842588,0.3859,113480.0,113450.0,0.88662247]
[1757507842785,0.04512,113470.0,113460.0,0.24879247]
[1757507842985,0.04512,113470.0,113460.0,0.11921342]
[1757507843184,0.40592,113470.0,113460.0,0.11921342]
[1757507843486,0.43102,113470.0,113460.0,0.24879247]
[1757507843687,0.43102,113470.0,113460.0,0.11921342]
[1757507844281,0.43102,113470.0,113460.0,0.07725342]
[1757507844482,0.07022,113470.0,113460.0,0.07725342]
[1757507844888,0.43102,113470.0,113460.0,0.07725342]
[1757507846785,0.43102,113470.0,113460.0,0.11921342]
[1757507846983,0.56059905,113470.0,113460.0,0.07725342]
[1757507847580,0.43102,113470.0,113460.0,0.07725342]
[1757507847789,0.07022,113460.0,113450.0,0.07725342]
[1757507847989,0.56059905,113460.0,113450.0,0.07725342]
[1757507848287,0.04512,113440.0,113430.0,0.15078279]
[1757507848483,0.07022,113440.0,113430.0,0.15078279]
[1757507848676,0.04512,113440.0,113430.0,0.28036184]
[1757507848881,0.51547905,113460.0,113430.0,0.91819184]
[1757507849082,0.04512,113450.0,113440.0,0.17153905]
[1757507849482,0.04512,113450.0,113440.0,0.19856905]
[1757507849786,0.04512,113450.0,113440.0,0.06899]
[1757507850090,0.04512,113450.0,113440.0,0.19856905]
[1757507850680,0.04512,113450.0,113440.0,0.17153905]
[1757507850879,0.56059905,113450.0,113420.0,0.38783]
[1757507851086,0.07022,113430.0,113420.0,0.40276]
[1757507851391,0.07022,113430.0,113420.0,0.28036184]
[1757507851588,0.07022,113430.0,113420.0,0.15078279]
[1757507851787,0.43102,113430.0,113420.0,0.10882279]
[1757507851983,0.56059905,113430.0,113420.0,0.10882279]
[1757507852185,0.07022,113420.0,113410.0,0.64116184]
[1757507852385,0.04512,113420.0,113410.0,0.53861279]
[1757507852586,0.04512,113420.0,113410.0,0.64116184]
[1757507853195,0.04512,113420.0,113410.0,0.28036184]
[1757507853196,0.07022,113420.0,113410.0,0.28036184]
[1757507853391,0.81059905,113420.0,113410.0,0.10882279]
[1757507853795,0.81059905,113420.0,113380.0,1.29062063]
[1757507853796,0.07022,113400.0,113390.0,0.10882279]
[1757507853983,0.92139905,113400.0,113390.0,0.10882279]
[1757507854495,0.0251,113390.0,113380.0,0.12671229]
[1757507854695,0.56018301,113390.0,113380.0,0.12671229]
[1757507855382,0.56018301,113390.0,113380.0,0.10882279]
[1757507855586,0.43102,113390.0,113380.0,0.10882279]
[1757507855786,0.43102,113390.0,113380.0,0.15078279]
[1757507855787,0.07022,113390.0,113380.0,0.15078279]
[1757507856186,0.43102,113390.0,113380.0,0.15078279]
[1757507856585,0.43102,113390.0,113380.0,0.04196]
[1757507857688,0.45598114,113390.0,113380.0,0.04196]
[1757507858296,0.07022,113380.0,113370.0,0.17112301]
[1757507858487,0.04512,113380.0,113370.0,0.17112301]
[1757507858686,0.07001292,113380.0,113370.0,0.04196]
[1757507858888,0.09511292,113380.0,113370.0,0.04196]
[1757507859093,0.22427593,113380.0,113360.0,0.3608]
[1757507859491,0.43102,113380.0,113360.0,0.3608]
[1757507859696,0.43102,113380.0,113350.0,0.53484873]
[1757507859891,0.45574529,113380.0,113350.0,0.53484873]
[1757507860195,0.04512,113420.0,113410.0,0.04196]
[1757507860499,0.3859,113440.0,113410.0,0.42979]
[1757507860689,0.3859,113440.0,113420.0,0.12916301]
[1757507860991,0.40592,113440.0,113430.0,0.17112301]
[1757507861191,0.43113,113440.0,113420.0,0.12916301]
[1757507861391,0.40125,113430.0,113420.0,0.04207]
[1757507861993,0.55562301,113430.0,113410.0,0.3608]
[1757507862195,0.51517301,113420.0,113390.0,0.38783]
[1757507862394,0.38601,113420.0,113390.0,0.51699301]
[1757507862594,0.02521,113410.0,113390.0,0.51699301]
[1757507862794,0.02521,113410.0,113390.0,0.3608]
[1757507862994,0.51517301,113400.0,113370.0,0.38592]
[1757507863195,0.15437301,113390.0,113360.0,0.51508301]
[1757507863496,0.02521,113410.0,113380.0,0.02512]
[1757507863701,0.3608,113420.0,113400.0,0.15428301]
[1757507863903,0.02521,113430.0,113410.0,0.12916301]
[1757507864097,0.38601,113430.0,113420.0,0.12916301]
[1757507864296,0.38601,113430.0,113410.0,0.12916301]
[1757507865006,0.02521,113400.0,113370.0,0.02512]
[1757507865198,0.38601,113400.0,113370.0,0.51508301]
[1757507865398,0.3608,113390.0,113370.0,0.15428301]
[1757507867095,0.38601,113400.0,113380.0,0.15428301]
[1757507867296,0.3608,113410.0,113390.0,0.15428301]
[1757507867507,0.3608,113410.0,113390.0,0.51508301]
[1757507868594,0.51517301,113410.0,113380.0,0.51508301]
[1757507868792,0.3608,113400.0,113380.0,0.51508301]
[1757507869899,0.3608,113400.0,113380.0,0.38592]
[1757507870494,0.48996301,113400.0,113380.0,0.02512]
[1757507870694,0.3608,113400.0,113380.0,0.38592]
[1757507871401,0.15437301,113390.0,113380.0,0.3608]
[1757507871597,0.15437301,113390.0,113350.0,0.37865572]
[1757507871598,0.02521,113370.0,113350.0,0.37865572]
[1757507871907,0.51517301,113360.0,113350.0,0.01785572]
[1757507872199,0.38601,113360.0,113350.0,0.01785572]
[1757507872397,1.88601,113360.0,113350.0,0.01785572]
[1757507872592,1.8608,113360.0,113350.0,0.01785572]
[1757507873497,1.88589,113360.0,113350.0,0.01785572]
[1757507874105,1.8608,113360.0,113350.0,0.01785572]
[1757507875402,1.88574,113360.0,113330.0,0.51508301]
[1757507875602,2.01490301,113360.0,113330.0,0.38592]
[1757507876102,2.01490301,113360.0,113330.0,0.51508301]
[1757507876506,0.04045,113340.0,113330.0,0.42799]
[1757507876801,0.04045,113340.0,113330.0,0.06719]
[1757507877003,0.19474301,113340.0,113320.0,0.38592]
[1757507877209,0.55554301,113340.0,113320.0,0.02512]
[1757507877400,0.42638,113340.0,113320.0,0.02512]
[1757507877594,0.55554301,113340.0,113320.0,0.02512]
[1757507878001,0.55554301,113340.0,113300.0,0.51508301]
[1757507878002,0.02494,113310.0,113300.0,0.3608]
[1757507878200,0.02494,113310.0,113270.0,0.00035314]
[1757507878201,0.02513,113280.0,113270.0,0.00035314]
[1757507878399,1.43961642,113280.0,113270.0,0.00035314]
[1757507878604,1.43961642,113280.0,113250.0,0.0003532]
[1757507878605,0.02513,113260.0,113250.0,0.0003532]
[1757507878804,0.15429301,113260.0,113250.0,0.0003532]
[1757507879006,1.23893301,113260.0,113250.0,0.0003532]
[1757507879202,0.76509301,113260.0,113250.0,0.0003532]
[1757507879506,0.63593,113260.0,113250.0,0.0003532]
[1757507879711,1.84957301,113260.0,113250.0,0.0003532]
[1757507880008,1.84953301,113260.0,113250.0,0.0003532]
[1757507880205,0.38593,113260.0,113250.0,0.0003532]
[1757507880407,1.41957301,113260.0,113250.0,0.0003532]
[1757507880605,0.51509301,113260.0,113250.0,0.0003532]
[1757507880808,1.59161301,113260.0,113250.0,0.0003532]
[1757507881111,1.44504,113260.0,113250.0,0.0003532]
[1757507881506,1.71983,113260.0,113250.0,0.0003532]
[1757507881805,0.3608,113260.0,113250.0,0.0003532]
[1757507882502,0.51454301,113270.0,113250.0,0.0003532]
[1757507882700,0.3608,113260.0,113250.0,0.0003532]
[1757507883105,1.46922,113270.0,113250.0,0.0003532]
[1757507883303,0.51479301,113260.0,113250.0,0.0003532]
[1757507883504,0.3608,113260.0,113250.0,0.12951621]
[1757507883706,0.38538,113270.0,113250.0,0.12951621]
[1757507883707,0.38538,113270.0,113250.0,0.37951621]
[1757507883908,0.3608,113290.0,113270.0,0.02512]
[1757507884105,0.3608,113300.0,113280.0,0.12916301]
[1757507884303,0.51509301,113300.0,113270.0,0.38592]
[1757507884514,1.46911,113310.0,113290.0,0.12916301]
[1757507884515,0.38563,113310.0,113290.0,0.12916301]
[1757507884813,0.02458,113290.0,113260.0,0.38592]
[1757507885006,0.3608,113280.0,113260.0,0.38592]
[1757507885402,0.02513,113300.0,113270.0,0.48996301]
[1757507885708,0.02513,113300.0,113260.0,0.15428301]
[1757507885709,0.3608,113280.0,113260.0,0.15428301]
[1757507886008,0.3608,113270.0,113260.0,0.15428301]
[1757507886203,0.3608,113290.0,113270.0,0.02512]
[1757507886523,0.3608,113290.0,113280.0,0.12916301]
[1757507886811,0.3608,113290.0,113270.0,0.15428301]
[1757507887014,0.3608,113280.0,113270.0,0.15428301]
[1757507887508,0.3608,113290.0,113270.0,0.27512]
[1757507887712,0.3608,113290.0,113280.0,0.12916301]
[1757507887914,0.3608,113310.0,113290.0,0.02512]
[1757507888112,0.3608,113300.0,113280.0,0.15428301]
[1757507888315,0.3608,113300.0,113290.0,0.12916301]
[1757507888912,0.3608,113300.0,113280.0,0.15428301]
[1757507889115,0.3608,113290.0,113280.0,0.15428301]
[1757507889310,0.3608,113290.0,113280.0,0.02512]
[1757507889615,0.6108,113290.0,113270.0,0.02512]
[1757507889813,0.3608,113290.0,113280.0,0.12916301]
[1757507890312,0.3608,113290.0,113270.0,0.02512]
[1757507890513,0.3608,113280.0,113260.0,0.38592]
[1757507890715,0.3608,113280.0,113270.0,0.12916301]
[1757507890919,0.014,113290.0,113280.0,0.02612]
[1757507891119,0.014,113290.0,113280.0,0.15528301]
[1757507891419,0.019,113290.0,113280.0,0.89524602]
[1757507891619,0.38601,113330.0,113300.0,0.02427]
[1757507891812,0.38401915,113330.0,113320.0,0.12916301]
[1757507892010,0.40909915,113330.0,113300.0,0.38507]
[1757507892306,0.3608,113320.0,113310.0,0.12916301]
[1757507892510,0.38401915,113320.0,113300.0,0.51423301]
[1757507892711,0.38401915,113320.0,113300.0,1.59551301]
[1757507892911,0.38401915,113320.0,113300.0,0.38507]
[1757507893110,0.38401915,113320.0,113300.0,1.59543301]
[1757507893313,0.38401915,113320.0,113310.0,0.15343301]
[1757507893522,0.38401915,113320.0,113300.0,1.46615]
[1757507893706,0.38401915,113320.0,113300.0,1.59527301]
[1757507894313,0.38401915,113320.0,113310.0,0.12916301]
[1757507894520,0.39201915,113320.0,113310.0,0.12916301]
[1757507894821,0.39501915,113320.0,113300.0,1.46611]
[1757507895018,0.38701915,113320.0,113310.0,0.12916301]
[1757507895617,0.38688472,113320.0,113300.0,1.59467301]
[1757507896005,0.38688472,113320.0,113300.0,0.51423301]
[1757507896221,0.38688472,113320.0,113310.0,0.12916301]
[1757507896716,0.38688472,113320.0,113310.0,1.20936301]
[1757507896924,0.02608472,113320.0,113310.0,1.20916301]
[1757507897114,0.38688472,113320.0,113310.0,0.12916301]
[1757507897314,0.39388472,113320.0,113310.0,1.20904301]
[1757507898019,0.39388472,113320.0,113310.0,1.07988]
[1757507898213,0.12916301,113340.0,113310.0,1.56984301]
[1757507898413,0.15127301,113340.0,113320.0,0.3608]
[1757507899123,0.15127301,113340.0,113330.0,0.3608]
[1757507899124,0.02211,113340.0,113330.0,0.3608]
[1757507899324,0.27211,113340.0,113330.0,0.3608]
[1757507900210,0.33549191,113340.0,113330.0,0.3608]
[1757507900415,0.06938191,113340.0,113330.0,0.3608]
[1757507900610,0.07338191,113340.0,113330.0,0.3608]
[1757507900811,0.01,113340.0,113330.0,0.51423301]
[1757507901016,0.01,113340.0,113330.0,1.59295301]
[1757507901220,0.01,113340.0,113330.0,0.3608]
[1757507901617,0.07338191,113340.0,113330.0,0.3608]
[1757507901817,0.06938191,113340.0,113330.0,0.3608]
[1757507902025,0.07238191,113340.0,113330.0,0.48996301]
[1757507902626,0.07238191,113340.0,113330.0,0.3608]
[1757507903013,0.07238191,113340.0,113330.0,0.48996301]
[1757507903225,0.07238191,113340.0,113330.0,0.3608]
[1757507903426,0.07138191,113340.0,113330.0,0.3608]
[1757507903626,0.51337492,113340.0,113330.0,0.3608]
[1757507903929,0.44999301,113340.0,113330.0,0.3608]
[1757507904323,0.32083,113340.0,113330.0,0.3608]
[1757507904530,0.29372,113340.0,113330.0,0.3608]
[1757507904723,0.04872,113340.0,113330.0,0.53412301]
[1757507904926,0.12794739,113340.0,113330.0,0.51070154]
[1757507905227,0.12794739,113340.0,113330.0,1.45897853]
[1757507905429,0.12794739,113340.0,113330.0,0.51070154]
[1757507905625,0.12794739,113340.0,113330.0,0.38153853]
[1757507905825,0.07117684,113340.0,113330.0,1.58790154]
[1757507906025,0.008,113340.0,113330.0,1.58790154]
[1757507906329,0.04872,113340.0,113330.0,0.51070154]
[1757507906522,0.04872,113340.0,113330.0,1.58770154]
[1757507906721,0.04872,113340.0,113330.0,1.58766154]
[1757507906924,0.04872,113340.0,113330.0,1.58762154]
[1757507907124,0.04872,113340.0,113330.0,0.48643154]
[1757507907431,0.15005739,113340.0,113330.0,1.38986853]
[1757507907631,0.12794739,113340.0,113330.0,0.44227154]
[1757507907928,0.12794739,113340.0,113330.0,1.56299154]
[1757507908125,0.12794739,113340.0,113330.0,1.58726154]
[1757507908326,0.04872,113340.0,113330.0,1.58726154]
[1757507908528,0.008,113340.0,113330.0,1.83726154]
[1757507908728,0.008,113340.0,113330.0,1.76572771]
[1757507908729,0.08722739,113340.0,113330.0,1.76572771]
[1757507909230,0.15055704,113340.0,113330.0,1.76572771]
[1757507909430,0.11204965,113340.0,113330.0,1.51540771]
[1757507909621,0.11204965,113340.0,113330.0,0.43916771]
[1757507909827,0.11204965,113340.0,113330.0,1.51512771]
[1757507910129,0.11204965,113340.0,113330.0,0.43916771]
[1757507910318,0.12691049,113340.0,113330.0,1.51512771]
[1757507910720,0.06358084,113340.0,113330.0,0.2857347]
[1757507911027,0.12891049,113340.0,113330.0,1.4364]
[1757507911330,0.14580823,113340.0,113330.0,1.43632]
[1757507911523,0.06658084,113340.0,113330.0,1.56548301]
[1757507911730,0.18926992,113340.0,113330.0,1.56548301]
[1757507911925,0.12993636,113340.0,113330.0,1.58975301]
[1757507912424,0.12993636,113340.0,113330.0,1.43632]
[1757507912631,0.12993636,113340.0,113330.0,1.56536301]
[1757507913222,0.08921636,113340.0,113330.0,1.58963301]
[1757507913425,0.02586084,113340.0,113330.0,1.58963301]
[1757507913623,0.04672,113340.0,113330.0,0.3608]
[1757507914025,0.04672,113340.0,113330.0,1.43544]
[1757507914228,0.04672,113340.0,113330.0,0.3608]
[1757507914628,0.04672,113340.0,113330.0,1.4352]
[1757507914829,0.04672,113340.0,113330.0,0.3608]
[1757507915026,0.04672,113340.0,113330.0,1.58863301]
[1757507915627,0.06935552,113340.0,113330.0,1.58863301]
[1757507915823,0.06935552,113340.0,113330.0,1.83863301]
[1757507916025,0.006,113340.0,113330.0,1.83863301]
[1757507916424,0.006,113340.0,113330.0,2.05783766]
[1757507916625,0.006,113340.0,113330.0,0.93937626]
[1757507916825,0.006,113340.0,113330.0,0.55930313]
[1757507917025,0.006,113340.0,113330.0,1.63290313]
[1757507917228,0.006,113340.0,113330.0,1.76297626]
[1757507917728,0.006,113340.0,113330.0,0.55930313]
[1757507918037,0.006,113340.0,113330.0,1.63290313]
[1757507918237,0.006,113340.0,113330.0,1.50283]
[1757507918429,0.006,113340.0,113330.0,1.63290313]
[1757507918624,0.04672,113340.0,113330.0,0.42923]
[1757507918936,0.36007552,113340.0,113330.0,0.3608]
[1757507919137,0.36007552,113340.0,113330.0,1.43276]
[1757507919338,0.38218552,113340.0,113320.0,1.58794313]
[1757507919531,0.10407552,113330.0,113320.0,1.56359313]
[1757507919837,0.10407552,113330.0,113320.0,0.49087313]
[1757507920035,0.10407552,113330.0,113320.0,1.56343313]
[1757507920233,0.10407552,113330.0,113320.0,0.3608]
[1757507920433,0.35948552,113330.0,113320.0,1.56331313]
[1757507920633,0.36048552,113330.0,113320.0,0.3608]
[1757507920830,0.36248552,113330.0,113320.0,0.3608]
[1757507921039,0.49255865,113330.0,113310.0,1.433]
[1757507921235,0.04315,113320.0,113310.0,1.56307313]
[1757507921533,0.04315,113320.0,113310.0,1.58846313]
[1757507921736,0.05063428,113330.0,113320.0,0.04498]
[1757507921933,0.05063428,113330.0,113320.0,0.69131626]
[1757507922132,0.05063428,113330.0,113320.0,0.51626313]
[1757507922336,0.001,113330.0,113320.0,0.51626313]
[1757507922728,0.001,113330.0,113320.0,0.89633626]
[1757507922934,0.001,113330.0,113320.0,0.98456596]
[1757507923239,0.04763428,113340.0,113330.0,0.15546313]
[1757507923536,0.04763428,113340.0,113330.0,0.76626313]
[1757507923938,0.04763428,113350.0,113330.0,1.83754313]
[1757507924138,0.04763428,113350.0,113340.0,0.3608]
[1757507924442,0.04763428,113350.0,113340.0,0.64633626]
[1757507925331,0.05563428,113350.0,113340.0,0.64633626]
[1757507926329,0.008,113350.0,113340.0,0.64633626]
[1757507926735,0.008,113350.0,113340.0,0.38619]
[1757507927051,0.008,113350.0,113340.0,1.58646313]
[1757507927432,0.008,113350.0,113340.0,1.71653626]
[1757507927639,0.008,113350.0,113340.0,1.45639]
[1757507927840,0.008,113350.0,113340.0,0.64633626]
[1757507928040,0.008,113350.0,113340.0,1.71653626]
[1757507928238,0.07135552,113350.0,113340.0,1.71653626]
[1757507929339,0.07135552,113350.0,113340.0,0.64633626]
[1757507929545,0.07135552,113350.0,113340.0,1.76107626]
[1757507930142,0.07135552,113350.0,113340.0,1.71609626]
[1757507931135,0.07135552,113350.0,113340.0,0.69131626]
[1757507931341,0.008,113350.0,113340.0,1.75999626]
[1757507932332,0.008,113350.0,113340.0,0.69131626]
[1757507932537,0.05561979,113350.0,113340.0,1.75991626]
[1757507932741,0.008,113350.0,113340.0,0.69131626]
[1757507933443,0.008,113350.0,113340.0,1.62904313]
[1757507933836,0.008,113350.0,113340.0,0.56124313]
[1757507934142,0.008,113350.0,113340.0,1.62900313]
[1757507934338,0.008,113350.0,113340.0,1.75907626]
[1757507934538,0.008,113350.0,113340.0,1.75887626]
[1757507934737,0.05115,113350.0,113340.0,1.62860313]
[1757507935443,0.11450552,113350.0,113340.0,1.62860313]
[1757507935645,0.11450552,113350.0,113340.0,1.49853]
[1757507935840,0.11450552,113350.0,113340.0,1.62812313]
[1757507936141,0.05115,113350.0,113340.0,1.62812313]
[1757507936843,0.05115,113350.0,113340.0,1.75819626]
[1757507937644,0.09877411,113350.0,113340.0,0.69131626]
[1757507937840,0.09877411,113350.0,113340.0,1.49729]
[1757507938145,0.09877411,113350.0,113340.0,1.75743626]
[1757507938345,0.09877411,113350.0,113340.0,1.62736313]
[1757507938533,0.09877411,113350.0,113340.0,0.56124313]
[1757507938735,0.87998865,113350.0,113320.0,0.51626313]
[1757507939045,0.09078066,113330.0,113320.0,1.62700313]
[1757507939448,0.09078066,113330.0,113320.0,1.62684313]
[1757507939638,0.09078066,113330.0,113320.0,1.49677]
[1757507939639,0.04763066,113330.0,113320.0,1.49677]
[1757507939842,0.39341,113350.0,113330.0,0.02539]
[1757507940143,0.04315,113340.0,113330.0,0.60801804]
[1757507940734,0.04315,113340.0,113330.0,1.67309804]
[1757507940941,0.04315,113340.0,113330.0,1.67305804]
[1757507941136,0.04315,113340.0,113330.0,1.24176804]
[1757507941336,0.04315,113340.0,113330.0,0.56879861]
[1757507941541,0.04715,113340.0,113330.0,1.67289804]
[1757507941739,0.04915,113340.0,113330.0,1.67289804]
[1757507942350,0.006,113340.0,113330.0,1.89119137]
[1757507942540,0.006,113340.0,113330.0,1.84441646]
[1757507942735,0.006,113340.0,113330.0,1.89108409]
[1757507943942,0.002,113340.0,113330.0,1.84441646]
[1757507944143,0.007,113340.0,113330.0,1.88991633]
[1757507944747,0.006,113340.0,113330.0,2.13991633]
[1757507944942,0.006,113340.0,113330.0,2.15524449]
[1757507945150,1.54315,113370.0,113360.0,0.41871346]
[1757507945338,0.04315,113380.0,113370.0,0.07037]
[1757507945539,0.04315,113380.0,113370.0,0.58450099]
[1757507945744,1.54315,113380.0,113370.0,0.20044313]
[1757507947049,2.379428,113380.0,113360.0,1.08803]
[1757507947448,2.379428,113380.0,113360.0,1.08799]
[1757507947645,0.04615,113370.0,113350.0,0.53952099]
[1757507947845,0.07076,113370.0,113360.0,1.0624]
[1757507948053,0.05115,113370.0,113360.0,1.21786313]
[1757507948357,0.30115,113370.0,113360.0,1.21778313]
[1757507948551,0.30115,113370.0,113360.0,1.06208]
[1757507948756,0.29615,113370.0,113360.0,1.06208]
[1757507948957,0.29415,113370.0,113360.0,1.19215313]
[1757507949944,0.29415,113370.0,113360.0,1.062]
[1757507950147,0.29415,113370.0,113360.0,1.06144]
[1757507950345,0.29415,113370.0,113360.0,1.06132]
[1757507950545,0.29415,113370.0,113350.0,0.53952099]
[1757507950758,0.04415,113370.0,113360.0,0.13007313]
[1757507951153,0.42722313,113370.0,113350.0,1.44727]
[1757507951358,1.67151313,113360.0,113350.0,1.06084]
[1757507951560,1.54144,113360.0,113350.0,1.06084]
[1757507951754,1.54144,113360.0,113340.0,0.51626313]
[1757507951955,1.54144,113360.0,113350.0,1.19071313]
[1757507952665,1.54444,113360.0,113350.0,1.06064]
[1757507952959,1.54844,113360.0,113350.0,1.06064]
[1757507953460,1.54844,113360.0,113350.0,1.19071313]
[1757507954158,1.54844,113360.0,113350.0,1.18979313]
[1757507956560,1.54844,113360.0,113350.0,1.05972]
[1757507956751,1.54844,113360.0,113350.0,1.18979313]
[1757507956956,1.54844,113360.0,113350.0,1.21415313]
[1757507957762,1.54844,113360.0,113350.0,1.66315953]
[1757507957973,0.007,113360.0,113350.0,1.68641739]
[1757507958267,0.007,113360.0,113350.0,1.66315953]
[1757507958865,0.007,113360.0,113350.0,1.91315953]
[1757507959869,0.007,113360.0,113350.0,1.7830864]
[1757507960174,0.007,113360.0,113350.0,0.80906313]
[1757507960369,0.007,113360.0,113350.0,1.86634313]
[1757507960570,0.007,113360.0,113350.0,1.86622313]
[1757507961666,0.04844,113360.0,113350.0,1.41784]
[1757507961862,0.04844,113360.0,113350.0,1.05704]
[1757507962262,0.04844,113360.0,113350.0,1.05656]
[1757507962467,0.45210313,113360.0,113340.0,0.40944786]
[1757507962664,0.20210313,113360.0,113340.0,1.46564786]
[1757507962873,0.07203,113360.0,113340.0,1.59572099]
[1757507963968,1.54144,113350.0,113340.0,0.13007313]
[1757507964170,1.92685,113350.0,113340.0,0.13007313]
[1757507964665,1.90224,113350.0,113340.0,0.17390313]
[1757507964870,1.90224,113350.0,113340.0,0.04383]
[1757507965173,1.90224,113350.0,113340.0,0.19826313]
[1757507965672,1.90224,113350.0,113340.0,1.25334313]
[1757507965863,1.90424,113350.0,113340.0,1.25334313]
[1757507966064,1.90424,113350.0,113340.0,1.25314313]
[1757507966369,1.90724,113350.0,113340.0,0.19826313]
[1757507967266,1.90724,113350.0,113340.0,0.22152099]
[1757507967759,1.54644,113350.0,113340.0,0.45224786]
[1757507967962,1.54644,113350.0,113340.0,1.63628099]
[1757507969263,1.54644,113350.0,113340.0,1.64406736]
[1757507969568,1.54644,113350.0,113340.0,0.46003423]
[1757507969769,1.54644,113350.0,113340.0,0.61345689]
[1757507970773,1.67651313,113350.0,113340.0,0.02334953]
[1757507971168,2.28731313,113350.0,113340.0,0.02334953]
[1757507971373,0.06476,113340.0,113330.0,0.02334953]
[1757507971567,0.06605,113330.0,113320.0,0.05439376]
[1757507971768,1.60940313,113330.0,113320.0,0.02334953]
[1757507972370,1.85940313,113330.0,113310.0,0.41519376]
[1757507972663,0.55590313,113320.0,113310.0,0.02334953]
[1757507972867,0.55590313,113320.0,113300.0,0.05439376]
[1757507972868,1.85798313,113320.0,113300.0,0.05439376]
[1757507973077,0.53231313,113310.0,113300.0,0.02334953]
[1757507973272,0.54118084,113310.0,113300.0,0.02334953]
[1757507973471,0.79118084,113310.0,113300.0,0.02334953]
[1757507973675,0.06476,113300.0,113290.0,0.02334953]
[1757507973875,1.60727313,113300.0,113290.0,0.02334953]
[1757507974075,0.55563313,113300.0,113290.0,0.02334953]
[1757507974269,0.42556,113300.0,113290.0,0.02334953]
[1757507974464,0.55563313,113300.0,113290.0,0.02334953]
[1757507974778,1.24623313,113300.0,113290.0,0.02334953]
[1757507974967,1.60703313,113300.0,113290.0,0.02334953]
[1757507975164,1.47696,113300.0,113290.0,0.02334953]
[1757507975369,1.60703313,113300.0,113280.0,0.43955376]
[1757507975770,1.61103313,113300.0,113280.0,0.43955376]
[1757507975971,1.46004,113300.0,113290.0,0.06717953]
[1757507976171,1.09924,113300.0,113290.0,0.06717953]
[1757507976378,1.0992,113300.0,113290.0,0.06717953]
[1757507976573,1.0992,113300.0,113290.0,0.02334953]
[1757507976773,0.40924,113300.0,113290.0,0.02334953]
[1757507976969,1.45968,113300.0,113290.0,0.02334953]
[1757507977477,1.58975313,113300.0,113280.0,0.18446689]
[1757507977665,1.58975313,113300.0,113280.0,0.05439376]
[1757507977871,0.17151313,113290.0,113280.0,0.05439376]
[1757507978175,0.04144,113290.0,113280.0,0.05439376]
[1757507978378,0.04144,113290.0,113280.0,0.02334953]
[1757507978771,0.53163948,113290.0,113280.0,0.02334953]
[1757507978971,0.40224,113290.0,113280.0,0.02334953]
[1757507979169,1.83167948,113290.0,113280.0,0.02334953]
[1757507979372,1.16501526,113290.0,113280.0,0.38414953]
[1757507979773,1.90501474,113290.0,113280.0,0.02334953]
[1757507980071,1.90701474,113290.0,113270.0,0.02329785]
[1757507980272,0.53163948,113280.0,113260.0,0.03104423]
[1757507980475,0.52640948,113270.0,113260.0,0.03104423]
[1757507980878,1.08505,113270.0,113260.0,0.09923423]
[1757507981279,1.08497,113270.0,113260.0,0.34923423]
[1757507981671,0.03621,113270.0,113260.0,0.34923423]
[1757507981871,1.08477,113270.0,113260.0,0.34923423]
[1757507982179,0.03621,113270.0,113260.0,0.83943371]
[1757507982380,1.08473,113270.0,113260.0,0.83942248]
[1757507982678,1.08473,113270.0,113260.0,0.349223]
[1757507982877,1.08473,113270.0,113260.0,0.305393]
[1757507983268,1.08473,113270.0,113260.0,0.031033]
[1757507983473,1.57492948,113270.0,113260.0,0.031033]
[1757507983874,1.44553,113270.0,113260.0,0.031033]
[1757507984273,1.44553,113270.0,113260.0,0.055703]
[1757507984582,1.44553,113270.0,113260.0,0.031033]
[1757507985076,0.39701,113270.0,113260.0,0.031033]
[1757507985374,0.39701,113270.0,113260.0,0.055703]
[1757507985585,1.08325,113270.0,113260.0,0.458193]
[1757507985968,1.08305,113270.0,113260.0,0.458193]
[1757507986374,1.46244948,113270.0,113260.0,0.031033]
[1757507986572,1.82324948,113270.0,113260.0,0.031033]
[1757507986775,1.82324948,113270.0,113250.0,0.07795255]
[1757507986968,0.16593948,113260.0,113250.0,0.07795255]
[1757507987372,1.21225948,113260.0,113250.0,0.07795255]
[1757507987574,1.82305948,113260.0,113230.0,0.42352129]
[1757507987781,0.01432,113230.0,113220.0,0.06205581]
[1757507988078,1.06036,113230.0,113220.0,0.42716]
[1757507988278,0.01432,113230.0,113220.0,0.42716]
[1757507988768,0.01432,113230.0,113220.0,0.67716]
[1757507989173,0.14371948,113230.0,113220.0,0.38547]
[1757507989382,0.50751948,113230.0,113210.0,0.38582333]
[1757507989577,0.01432,113220.0,113210.0,0.38582333]
[1757507989775,0.08421592,113220.0,113210.0,0.42751333]
[1757507990270,0.08421592,113220.0,113210.0,0.38582333]
[1757507991080,0.08421592,113220.0,113210.0,0.02502333]
[1757507991379,0.2136154,113220.0,113210.0,0.00035333]
[1757507991576,0.2136154,113220.0,113210.0,0.02502333]
[1757507991577,0.08421592,113220.0,113210.0,0.02502333]
[1757507991776,1.12893592,113220.0,113210.0,0.38582333]
[1757507991971,1.12893592,113220.0,113210.0,0.00035333]
[1757507992177,1.12869592,113220.0,113210.0,0.06671333]
[1757507992370,1.2580954,113220.0,113210.0,0.00035333]
[1757507992877,1.5080954,113220.0,113210.0,0.00035333]
[1757507993078,1.8777754,113220.0,113210.0,0.00035333]
[1757507993276,1.8777754,113220.0,113190.0,0.46263891]
[1757507993277,1.74837592,113220.0,113190.0,0.07716891]
[1757507993469,0.12939948,113200.0,113190.0,0.07716891]
[1757507993669,1.54776948,113200.0,113190.0,0.00035339]
[1757507993874,3.57900948,113200.0,113170.0,0.00035345]
[1757507994182,0.98039896,113180.0,113150.0,0.00035351]